fUSD/lending_fUSD_20240419
["ID","MTS","AMOUNT","RATE_DAILY","PERIOD"]
[322957460,1713545448521,-812.31,0.00013698,2]
[322957461,1713545448531,-500.0,0.00013698,2]
[322957462,1713545448540,-630.52136557,0.00013698,2]
[322957463,1713545448550,-500.0,0.00013698,2]
[322957464,1713545448559,-961.3,0.00013698,2]
[322957465,1713545448568,-524.37,0.00013698,2]
[322957466,1713545448580,-500.0,0.00013698,2]
[322957467,1713545448589,-500.0,0.00013698,2]
[322957468,1713545448599,-1610.22,0.00013698,2]
[322957469,1713545448608,-500.0,0.00013698,2]
[322957470,1713545448618,-500.0,0.00013698,2]
[322957471,1713545448627,-500.0,0.00013698,2]
[322957472,1713545448637,-500.0,0.00013698,2]
[322957473,1713545448647,-227.88921452,0.00013698,2]
[322957474,1713545448656,-761.7,0.00013698,2]
[322957475,1713545448666,-1187.81,0.00013698,2]
[322957476,1713545448675,-500.0,0.00013698,2]
[322957477,1713545448684,-962.11,0.00013698,2]
[322957478,1713545448694,-749.26,0.00013698,2]
[322957479,1713545448707,-1595.93,0.00013698,2]
[322957480,1713545448717,-500.0,0.00013698,2]
[322957481,1713545448726,-558.1,0.00013698,2]
[322957482,1713545448736,-500.0,0.00013698,2]
[322957483,1713545448746,-1021.63,0.00013698,2]
[322957484,1713545448757,-604.49,0.00013698,2]
[322957485,1713545448766,-937.28,0.00013698,2]
[322957486,1713545448777,-1207.98,0.00013698,2]
[322957487,1713545448786,-500.0,0.00013698,2]
[322957488,1713545448795,-893.23,0.00013698,2]
[322957489,1713545448805,-636.4,0.00013698,2]
[322957490,1713545448814,-500.0,0.00013698,2]
[322957491,1713545448824,-500.0,0.00013698,2]
[322957492,1713545448834,-811.63,0.00013698,2]
[322957493,1713545448843,-1042.39,0.00013698,2]
[322957494,1713545448854,-500.0,0.00013698,2]
[322957495,1713545448864,-1305.67,0.00013698,2]
[322957496,1713545448874,-936.16,0.00013698,2]
[322957497,1713545448884,-500.0,0.00013698,2]
[322957498,1713545448893,-500.0,0.00013698,2]
[322957499,1713545448903,-500.0,0.00013698,2]
[322957500,1713545448912,-500.0,0.00013698,2]
[322957501,1713545448922,-1207.6,0.00013698,2]
[322957502,1713545448931,-500.0,0.00013698,2]
[322957503,1713545448941,-4015.43,0.00013698,2]
[322957504,1713545448951,-741.26,0.00013698,2]
[322957505,1713545448961,-710.53,0.00013698,2]
[322957506,1713545448970,-500.0,0.00013698,2]
[322957507,1713545448980,-500.0,0.00013698,2]
[322957508,1713545448989,-1322.3,0.00013698,2]
[322957509,1713545448998,-500.0,0.00013698,2]
[322957510,1713545449008,-858.0,0.00013698,2]
[322957511,1713545449018,-1202.8,0.00013698,2]
[322957512,1713545449027,-506.66324391,0.00013698,2]
[322957513,1713545449037,-500.0,0.00013698,2]
[322957514,1713545449046,-904.42,0.00013698,2]
[322957515,1713545449056,-500.0,0.00013698,2]
[322957516,1713545449065,-500.0,0.00013698,2]
[322957517,1713545449077,-820.82,0.00013698,2]
[322957518,1713545449086,-500.0,0.00013698,2]
[322957519,1713545449096,-1507.6,0.00013698,2]
[322957520,1713545449105,-500.0,0.00013698,2]
[322957521,1713545449115,-500.0,0.00013698,2]
[322957522,1713545449124,-709.29,0.00013698,2]
[322957523,1713545449134,-500.0,0.00013698,2]
[322957524,1713545449143,-500.0,0.00013698,2]
[322957525,1713545449153,-500.0,0.00013698,2]
[322957526,1713545449163,-601.53723518,0.00013698,2]
[322957527,1713545449172,-650.02,0.00013698,2]
[322957528,1713545449182,-579.91,0.00013698,2]
[322957529,1713545449191,-1048.17,0.00013698,2]
[322957530,1713545449201,-500.0,0.00013698,2]
[322957531,1713545449211,-500.0,0.00013698,2]
[322957532,1713545449221,-500.0,0.00013698,2]
[322957533,1713545449231,-1041.16,0.00013698,2]
[322957534,1713545449241,-567.79467543,0.00013698,2]
[322957535,1713545449250,-502.18,0.00013698,2]
[322957536,1713545449259,-571.12,0.00013698,2]
[322957537,1713545449269,-500.0,0.00013698,2]
[322957538,1713545449278,-500.0,0.00013698,2]
[322957539,1713545449288,-500.0,0.00013698,2]
[322957540,1713545449298,-851.2,0.00013698,2]
[322957541,1713545449308,-500.0,0.00013698,2]
[322957542,1713545449317,-500.0,0.00013698,2]
[322957543,1713545449328,-1417.95,0.00013698,2]
[322957544,1713545449338,-500.0,0.00013698,2]
[322957545,1713545449347,-1284.28,0.00013698,2]
[322957546,1713545449357,-1014.85,0.00013698,2]
[322957547,1713545449367,-500.0,0.00013698,2]
[322957548,1713545449377,-923.93,0.00013698,2]
[322957549,1713545449386,-651.05,0.00013698,2]
[322957550,1713545449395,-1368.78,0.00013698,2]
[322957551,1713545449404,-500.0,0.00013698,2]
[322957552,1713545449413,-1745.53,0.00013698,2]
[322957553,1713545449423,-753.31,0.00013698,2]
[322957554,1713545449434,-500.0,0.00013698,2]
[322957555,1713545449445,-500.0,0.00013698,2]
[322957556,1713545449456,-692.25,0.00013698,2]
[322957557,1713545449466,-500.0,0.00013698,2]
[322957558,1713545449475,-500.0,0.00013698,2]
[322957559,1713545449485,-965.24,0.00013698,2]
[322957560,1713545449494,-500.0,0.00013698,2]
[322957561,1713545449505,-500.0,0.00013698,2]
[322957562,1713545449514,-2271.14,0.00013698,2]
[322957563,1713545449525,-788.83,0.00013698,2]
[322957564,1713545449534,-500.0,0.00013698,2]
[322957565,1713545449544,-500.0,0.00013698,2]
[322957566,1713545449553,-1175.22,0.00013698,2]
[322957567,1713545449563,-500.0,0.00013698,2]
[322957568,1713545449574,-2349.88,0.00013698,2]
[322957569,1713545449584,-549.38,0.00013698,2]
[322957570,1713545449595,-1950.71,0.00013698,2]
[322957571,1713545449606,-500.0,0.00013698,2]
[322957572,1713545449616,-252.39574005,0.00013698,2]
[322957573,1713545449625,-500.0,0.00013698,2]
[322957574,1713545449635,-1287.04,0.00013698,2]
[322957575,1713545449644,-1070.34,0.00013698,2]
[322957576,1713545449654,-500.0,0.00013698,2]
[322957577,1713545449664,-500.0,0.00013698,2]
[322957578,1713545449673,-1344.61,0.00013698,2]
[322957579,1713545449682,-500.0,0.00013698,2]
[322957580,1713545449693,-500.0,0.00013698,2]
[322957581,1713545449706,-500.0,0.00013698,2]
[322957582,1713545449714,-500.0,0.00013698,2]
[322957583,1713545449724,-1931.9,0.00013698,2]
[322957584,1713545449734,-1691.6,0.00013698,2]
[322957585,1713545449743,-914.53,0.00013698,2]
[322957586,1713545449752,-570.06,0.00013698,2]
[322957587,1713545449762,-638.54,0.00013698,2]
[322957588,1713545449771,-500.0,0.00013698,2]
[322957589,1713545449782,-1560.74,0.00013698,2]
[322957590,1713545449792,-669.77,0.00013698,2]
[322957591,1713545449801,-500.0,0.00013698,2]
[322957592,1713545449810,-1241.65,0.00013698,2]
[322957593,1713545449819,-1368.6,0.00013698,2]
[322957594,1713545449830,-1095.81,0.00013698,2]
[322957595,1713545449839,-500.0,0.00013698,2]
[322957596,1713545449849,-500.0,0.00013698,2]
[322957597,1713545449858,-727.7,0.00013698,2]
[322957598,1713545449867,-2511.05,0.00013698,2]
[322957599,1713545449877,-500.0,0.00013698,2]
[322957600,1713545449886,-918.3,0.00013698,2]
[322957601,1713545449895,-1128.2,0.00013698,2]
[322957602,1713545449905,-2005.33,0.00013698,2]
[322957603,1713545449914,-500.0,0.00013698,2]
[322957604,1713545449923,-808.48,0.00013698,2]
[322957605,1713545449933,-1002.2,0.00013698,2]
[322957606,1713545449942,-964.43,0.00013698,2]
[322957607,1713545449952,-685.43,0.00013698,2]
[322957608,1713545449961,-291.89019767,0.00013698,2]
[322957609,1713545449971,-500.0,0.00013698,2]
[322957610,1713545449980,-624.13656218,0.00013698,2]
[322957611,1713545450071,-298.4501966,0.00013256,2]
[322957612,1713545450082,-24.06974865,0.00013698,2]
[322957613,1713545450100,-543.05891375,0.00013698,2]
[322957614,1713545450137,-491.92477542,0.00013698,2]
[322957615,1713545450146,-642.45,0.00013698,2]
[322957616,1713545450156,-1479.33,0.00013698,2]
[322957617,1713545450166,-500.0,0.00013698,2]
[322957618,1713545450176,-1587.32,0.00013698,2]
[322957619,1713545450186,-500.0,0.00013698,2]
[322957620,1713545450195,-943.15,0.00013698,2]
[322957621,1713545450205,-1858.16,0.00013698,2]
[322957622,1713545450215,-500.0,0.00013698,2]
[322957623,1713545450224,-2154.48,0.00013698,2]
[322957624,1713545450234,-500.0,0.00013698,2]
[322957625,1713545450244,-1383.37,0.00013698,2]
[322957626,1713545450254,-500.0,0.00013698,2]
[322957627,1713545450264,-719.6,0.00013698,2]
[322957628,1713545450277,-648.81,0.00013698,2]
[322957629,1713545450288,-500.0,0.00013698,2]
[322957630,1713545450298,-2841.89,0.00013698,2]
[322957631,1713545450308,-1242.58,0.00013698,2]
[322957632,1713545450318,-522.09,0.00013698,2]
[322957633,1713545450329,-280.95587806,0.00013698,2]
[322957634,1713545450372,-1236.72,0.00013698,2]
[322957635,1713545450385,-398.49412194,0.00013698,2]
[322957636,1713545450394,-1750.5,0.00013698,2]
[322957637,1713545450404,-1044.42,0.00013698,2]
[322957638,1713545450413,-1925.76,0.00013698,2]
[322957639,1713545450423,-500.0,0.00013698,2]
[322957640,1713545450432,-2747.73,0.00013698,2]
[322957641,1713545450442,-675.28,0.00013698,2]
[322957642,1713545450451,-618.81081329,0.00013698,2]
[322957643,1713545450461,-1653.19,0.00013698,2]
[322957644,1713545450471,-534.48,0.00013698,2]
[322957645,1713545450481,-500.0,0.00013698,2]
[322957646,1713545450490,-500.0,0.00013698,2]
[322957647,1713545450500,-1256.73,0.00013698,2]
[322957648,1713545450509,-856.51,0.00013698,2]
[322957649,1713545450518,-645.78,0.00013698,2]
[322957650,1713545450528,-500.0,0.00013698,2]
[322957651,1713545450537,-500.0,0.00013698,2]
[322957652,1713545450547,-1850.08,0.00013698,2]
[322957653,1713545450557,-824.11,0.00013698,2]
[322957654,1713545450567,-2683.03,0.00013698,2]
[322957655,1713545450578,-500.0,0.00013698,2]
[322957656,1713545450587,-500.0,0.00013698,2]
[322957657,1713545450596,-1468.24,0.00013698,2]
[322957658,1713545450606,-842.65,0.00013698,2]
[322957659,1713545450615,-500.0,0.00013698,2]
[322957660,1713545450626,-500.0,0.00013698,2]
[322957661,1713545450635,-500.0,0.00013698,2]
[322957662,1713545450644,-500.0,0.00013698,2]
[322957663,1713545450653,-782.13501947,0.00013698,2]
[322957664,1713545450667,-263.88498053,0.00013698,2]
[322957665,1713545450676,-236.11501947,0.00013698,2]
[322957669,1713545562602,150.0,0.00015,15]
[322957670,1713545580188,5092.42268574,0.00015,14]
[322957671,1713545663660,475.93,0.00010686,2]
[322957672,1713545849746,150.0,0.00015,15]
[322957673,1713546003151,3072.58,0.00013562,14]
[322957674,1713546141156,150.0,0.00015,15]
[322957675,1713546164024,496.74,0.00010527,2]
[322957676,1713546205192,552.99543479,8.422e-05,2]
[322957677,1713546265118,19668.23094395,8.422e-05,2]
[322957678,1713546282991,19668.23094395,8.422e-05,2]
[322957680,1713546300980,150.0,8.422e-05,2]
[322957681,1713546301001,284.10938059,8.422e-05,2]
[322957682,1713546301022,19234.12156336,8.422e-05,2]
[322957683,1713546313738,450.0,8.422e-05,2]
[322957684,1713546319283,422.92322063,8.422e-05,2]
[322957685,1713546324543,155.44721549,8.422e-05,2]
[322957686,1713546376203,3143.84,0.000282,120]
[322957701,1713546562735,-431.38,0.00012184,2]
[322957702,1713546562756,-207.69492018,0.00012202,2]
[322957703,1713546562777,-3360.92507982,0.00012202,2]
[322957704,1713546563654,-2182.85970768,0.00012202,2]
[322957705,1713546563674,-1067.0197,0.00012203,2]
[322957706,1713546563698,-750.12059232,0.00012225,2]
[322957707,1713546563988,-4000.0,0.00012225,2]
[322957708,1713546564581,-2588.29873185,0.00012225,2]
[322957709,1713546564604,-1411.70126815,0.00012227,2]
[322957710,1713546565051,-4000.0,0.00012227,2]
[322957711,1713546565277,-4000.0,0.00012227,2]
[322957712,1713546565610,-4000.0,0.00012227,2]
[322957713,1713546565920,-1157.15618183,0.00012227,2]
[322957714,1713546565940,-200.0,0.00012229,2]
[322957715,1713546565962,-2642.84381817,0.00012285,2]
[322957716,1713546566266,-3287.35618183,0.00012285,2]
[322957717,1713546566287,-712.64381817,0.00012305,2]
[322957718,1713546566791,-4000.0,0.00012305,2]
[322957719,1713546567287,-52.05148183,0.00012305,2]
[322957720,1713546567307,-150.0,0.0001238,2]
[322957721,1713546567330,-163.30833189,0.00012407,2]
[322957722,1713546567351,-164.5,0.00012419,2]
[322957723,1713546567374,-1000.0,0.00012509,2]
[322957724,1713546567397,-163.31,0.00012637,2]
[322957725,1713546567418,-173.4951,0.0001278,2]
[322957726,1713546567438,-2133.33508628,0.0001278,2]
[322957727,1713546568035,-4000.0,0.0001278,2]
[322957728,1713546568208,-4000.0,0.0001278,2]
[322957729,1713546569337,-4000.0,0.0001278,2]
[322957730,1713546569548,-4000.0,0.0001278,2]
[322957731,1713546569774,-4000.0,0.0001278,2]
[322957732,1713546569944,-4000.0,0.0001278,2]
[322957733,1713546570394,-4000.0,0.0001278,2]
[322957734,1713546570905,-4000.0,0.0001278,2]
[322957735,1713546571454,-4000.0,0.0001278,2]
[322957736,1713546571824,-1928.08121372,0.0001278,2]
[322957737,1713546571845,-563.6279,0.0001278,2]
[322957738,1713546571866,-1000.0,0.0001278,2]
[322957739,1713546571886,-434.5472,0.0001278,2]
[322957740,1713546571907,-73.74368628,0.0001278,2]
[322957741,1713546572299,-3890.49151372,0.0001278,2]
[322957742,1713546572320,-109.50848628,0.0001278,2]
[322957743,1713546572751,-2390.49151372,0.0001278,2]
[322957744,1713546572774,-209.8678,0.0001278,2]
[322957745,1713546572797,-496.74,0.00012791,2]
[322957746,1713546572819,-902.90068628,0.0001288,2]
[322957747,1713546573184,-4000.0,0.0001288,2]
[322957748,1713546574493,-4000.0,0.0001288,2]
[322957749,1713546575026,-4000.0,0.0001288,2]
[322957750,1713546575600,-4000.0,0.0001288,2]
[322957751,1713546575939,-4000.0,0.0001288,2]
[322957752,1713546576520,-4000.0,0.0001288,2]
[322957753,1713546576912,-4000.0,0.0001288,2]
[322957754,1713546577501,-4000.0,0.0001288,2]
[322957755,1713546577606,-4000.0,0.0001288,2]
[322957756,1713546578065,-4000.0,0.0001288,2]
[322957757,1713546578674,-4000.0,0.0001288,2]
[322957758,1713546580751,-4000.0,0.0001288,2]
[322957759,1713546599226,652.017,0.00023,30]
[322957768,1713546631788,-178.42,0.00012638,2]
[322957769,1713546631798,-209.57999996,0.0001278,2]
[322957772,1713546631840,-1836.70850841,0.0001278,2]
[322957773,1713546631897,-453.71149163,0.0001278,2]
[322957774,1713546631907,-753.60934443,0.0001278,2]
[322957775,1713546631919,-400.0,0.0001278,2]
[322957776,1713546631957,-496.346633,0.0001278,2]
[322957777,1713546631968,-395.00862257,0.0001278,2]
[322957778,1713546631978,-335.34673998,0.00012879,2]
[322957779,1713546632011,-4755.16731105,0.00012879,2]
[322957780,1713546632021,-207.69492018,0.00012879,2]
[322957781,1713546632031,-645.61554282,0.00012879,2]
[322957782,1713546632040,-17561.10465356,0.0001288,2]
[322957794,1713546638166,-422.9329134,0.0001288,2]
[322957795,1713546638187,-16808.53730584,0.0001288,2]
[322957796,1713546638198,-316.62,0.0001288,2]
[322957797,1713546638239,-23804.92478418,0.0001288,2]
[322957798,1713546638249,-4630.40446771,0.0001288,2]
[322957891,1713546639905,-366.976,0.0001288,2]
[322957892,1713546639917,-1198.68,0.0001288,2]
[322957893,1713546639932,-537.15010989,0.0001288,2]
[322957894,1713546639963,-673.21892289,0.0001288,2]
[322957895,1713546639974,-1930.61706,0.0001288,2]
[322957896,1713546640007,-100463.50181957,0.0001288,2]
[322957897,1713546640017,-7925.45,0.0001295,2]
[322957898,1713546640026,-150.99,0.00012999,2]
[322957899,1713546640036,-4453.8958,0.00013,2]
[322957900,1713546640045,-4413.706,0.00013,2]
[322957901,1713546640055,-27930.96203942,0.00013,2]
[322957902,1713546640065,-1059.04315439,0.00013255,2]
[322957903,1713546640077,-155.0,0.00013256,2]
[322957904,1713546640086,-1000.0,0.00013455,2]
[322957905,1713546640095,-163.30833189,0.00013498,2]
[322957906,1713546640106,-1840.71090963,0.00013498,2]
[322957907,1713546640118,-804.29,0.00013498,2]
[322957909,1713546640330,-4855.09641126,0.00013498,2]
[322957910,1713546640359,-756.75954002,0.00013498,2]
[322957911,1713546640371,-1064.36232487,0.00013498,2]
[322957953,1713546642967,-1402.43281422,0.00013498,2]
[322957955,1713546642977,-1198.61773,0.0001356,2]
[322957957,1713546642987,-176.72738801,0.00013561,2]
[322957959,1713546642996,-1000.0,0.00013587,2]
[322957960,1713546643006,-182.07206977,0.00013587,2]
[322957961,1713546643044,-317.92793023,0.00013587,2]
[322957962,1713546643054,-1000.0,0.00013588,2]
[322957963,1713546643066,-1000.0,0.00013588,2]
[322957964,1713546643075,-1000.0,0.00013588,2]
[322957965,1713546643083,-500.0,0.00013588,2]
[322957966,1713546643092,-500.0,0.00013588,2]
[322957967,1713546643101,-171.25018801,0.00013596,2]
[322957968,1713546643110,-176.35323577,0.00013596,2]
[322957969,1713546643119,-206.06084279,0.00013596,2]
[322957970,1713546643129,-200.12509949,0.00013596,2]
[322957971,1713546643138,-10503.75982087,0.00013598,2]
[322957972,1713546643190,-1130.39999947,0.00013598,2]
[322957996,1713546646392,-396.90742973,0.00013598,2]
[322957997,1713546646407,-3919.69751648,0.00013598,2]
[322957998,1713546709077,545.60472567,0.00010878,2]
[322957999,1713546715756,185.4011253,0.00015,15]
[322958000,1713546727090,150.0,0.00010878,2]
[322958001,1713546727126,32.75885174,0.00010878,2]
[322958002,1713546770890,606.75,0.00010769,2]
[322958003,1713546778091,-301.68444455,0.00012,2]
[322958004,1713546778112,-749.38221089,0.00012318,2]
[322958005,1713546778134,-155.0,0.00012318,2]
[322958006,1713546778156,-537.75403605,0.00012705,2]
[322958007,1713546778180,-166.64,0.00012706,2]
[322958008,1713546778202,-2089.53930851,0.00012714,2]
[322958009,1713546778614,-150.0,0.00012637,2]
[322958010,1713546778636,-1291.74296411,0.00012714,2]
[322958011,1713546778657,-2558.25703589,0.00012714,2]
[322958012,1713546779343,-1775.8578558,0.00011999,2]
[322958013,1713546779364,-606.25290373,0.00012714,2]
[322958014,1713546779386,-236.6335643,0.00012714,2]
[322958015,1713546779408,-162.04921736,0.00012714,2]
[322958016,1713546779429,-1219.20645881,0.00012715,2]
[322958017,1713546783632,23.77579547,0.00010769,2]
[322958018,1713546783655,234.22403622,0.00010769,2]
[322958019,1713546784922,179.29,0.00010076,2]
[322958020,1713546795522,179.58257449,0.00010769,2]
[322958021,1713546797439,344.16711919,0.00010769,2]
[322958022,1713546799003,172.99260971,0.00010769,2]
[322958023,1713546799636,150.0,0.00010769,2]
[322958024,1713546799658,87.0148925,0.00010769,2]
[322958025,1713546813432,210.04453502,0.00010769,2]
[322958026,1713546813509,179.58257449,0.00010769,2]
[322958027,1713546818132,150.0,0.00010769,2]
[322958028,1713546818153,22.84270533,0.00010769,2]
[322958029,1713546833516,275.12930231,0.00010769,2]
[322958037,1713547079906,334.63338574,0.00010769,2]
[322958038,1713547093867,150.0,0.00010769,2]
[322958039,1713547093888,150.0,0.00010769,2]
[322958040,1713547093909,150.0,0.00010769,2]
[322958041,1713547093930,150.0,0.00010769,2]
[322958042,1713547093950,150.0,0.00010769,2]
[322958043,1713547093971,150.0,0.00010769,2]
[322958044,1713547093991,273.18661465,0.00010769,2]
[322958045,1713547094012,12059.2095891,0.00010769,2]
[322958046,1713547111162,15417.39239478,0.00010769,2]
[322958047,1713547146781,150.0,0.00010769,2]
[322958048,1713547146805,20013.2950439,0.00010769,2]
[322958049,1713547148082,150.0,0.00015422,15]
[322958050,1713547159668,150.0,0.00010769,2]
[322958051,1713547159689,150.0,0.00010769,2]
[322958052,1713547159710,150.0,0.00010769,2]
[322958053,1713547159733,150.0,0.00010769,2]
[322958054,1713547159755,1428.67960821,0.00010769,2]
[322958055,1713547166912,615.412143,0.00011162,2]
[322958056,1713547170415,-600.0,0.00011217,2]
[322958057,1713547178802,150.03763655,0.00011118,2]
[322958058,1713547242238,234.55,0.00011188,2]
[322958059,1713547249484,150.0,0.00011122,2]
[322958060,1713547249518,196.07,0.00011122,2]
[322958061,1713547261702,208.46925549,0.00011118,2]
[322958062,1713547262510,152.68,0.00011162,2]
[322958063,1713547263170,152.68,0.00011181,2]
[322958064,1713547263406,152.68,0.00011199,2]
[322958065,1713547264985,1076.73,9.244e-05,2]
[322958066,1713547295802,150.0,0.00011047,2]
[322958067,1713547322843,571.01966468,0.00012798,7]
[322958068,1713547352004,-150.0,0.000112,2]
[322958069,1713547353829,-44.30234694,0.000112,2]
[322958070,1713547353851,-105.69765306,0.000112,2]
[322958071,1713547355000,-150.0,0.000112,2]
[322958072,1713547355522,176.58,8.869e-05,2]
[322958073,1713547355896,176.58,0.00010347,2]
[322958074,1713547356075,-150.0,0.000112,2]
[322958075,1713547357093,-150.0,0.000112,2]
[322958076,1713547358136,-150.0,0.000112,2]
[322958077,1713547359152,-150.0,0.000112,2]
[322958078,1713547360477,155.0,0.00011199,2]
[322958079,1713547361587,155.0,0.00011199,2]
[322958080,1713547361863,23900.0,0.00011115,2]
[322958081,1713547362150,200.2042692,0.00011199,2]
[322958082,1713547362650,155.0,0.00011199,2]
[322958083,1713547362815,9507.21,0.00011097,2]
[322958084,1713547364435,262.16181551,8.868e-05,2]
[322958085,1713547364483,162.04921736,0.00011199,2]
[322958087,1713547365137,202.23587417,8.868e-05,2]
[322958088,1713547366274,236.6335643,8.868e-05,2]
[322958089,1713547366751,683.85801467,8.868e-05,2]
[322958090,1713547369861,712.2938438,0.00011199,2]
[322958091,1713547370165,-150.0,0.000112,2]
[322958092,1713547371357,-150.0,0.000112,2]
[322958093,1713547371989,-150.0,0.000112,2]
[322958094,1713547372848,2998.8492905,0.00011199,2]
[322958095,1713547372883,-150.0,0.000112,2]
[322958096,1713547374118,-150.0,0.000112,2]
[322958097,1713547374231,161.43545051,0.00011199,2]
[322958098,1713547375324,-150.0,0.000112,2]
[322958099,1713547375402,712.2938438,0.00011199,2]
[322958100,1713547376250,192.65574287,0.00011199,2]
[322958101,1713547376477,-150.0,0.000112,2]
[322958102,1713547377050,-150.0,0.000112,2]
[322958103,1713547377566,2432.1744,0.00011118,2]
[322958104,1713547377717,-150.0,0.000112,2]
[322958105,1713547381274,750.0,0.00011078,2]
[322958106,1713547382070,3381.28227262,0.00011199,2]
[322958107,1713547387701,712.2938438,0.00011199,2]
[322958108,1713547387932,2358.86672188,0.00011199,2]
[322958109,1713547390168,706.16360927,0.00011199,2]
[322958110,1713547394974,164.43136197,0.00011199,2]
[322958111,1713547395616,206.67486349,0.00011198,2]
[322958112,1713547398279,749.38221089,0.00011199,2]
[322958113,1713547401975,155.0,0.00011199,2]
[322958114,1713547402859,378.84360222,0.00011199,2]
[322958115,1713547405005,207.69492018,0.00011199,2]
[322958116,1713547405728,1388.59049396,0.00011199,2]
[322958117,1713547409673,-150.0,0.000112,2]
[322958118,1713547409714,155.0,0.00011199,2]
[322958119,1713547409886,210.50432826,0.00011199,2]
[322958120,1713547411583,537.75403605,0.00011199,2]
[322958121,1713547412209,4092.95,0.00011147,2]
[322958122,1713547416489,709.66689776,0.00011198,2]
[322958123,1713547420900,-150.0,0.000112,2]
[322958124,1713547421764,-150.0,0.000112,2]
[322958125,1713547422349,-150.0,0.000112,2]
[322958126,1713547422881,-150.0,0.000112,2]
[322958127,1713547423506,-150.0,0.000112,2]
[322958128,1713547424145,-58.81228656,0.000112,2]
[322958129,1713547424167,-91.18771344,0.000112,2]
[322958130,1713547430935,150.0,0.00015345,15]
[322958131,1713547432602,155.0,0.00011199,2]
[322958132,1713547472532,199.33,0.00010853,2]
[322958133,1713547477130,1350.93200741,0.00011199,2]
[322958134,1713547480484,749.38221089,0.00011199,2]
[322958135,1713547485995,250.0,0.00010865,2]
[322958136,1713547488592,8507.77,0.00010842,2]
[322958137,1713547492046,200.0,0.00010853,2]
[322958138,1713547508146,164.5,0.00010865,2]
[322958140,1713547550569,202.23587417,0.00011199,2]
[322958141,1713547554475,3211.13,0.00010821,2]
[322958142,1713547560849,749.38221089,0.00011199,2]
[322958143,1713547562440,2998.8492905,0.00011199,2]
[322958144,1713547563533,161.43545051,0.00011199,2]
[322958145,1713547566925,262.16181551,0.00011199,2]
[322958146,1713547567312,-150.0,0.000112,2]
[322958147,1713547567856,-150.0,0.000112,2]
[322958148,1713547569035,-150.0,0.000112,2]
[322958149,1713547569630,-150.0,0.000112,2]
[322958150,1713547578311,5200.17861963,0.00011199,2]
[322958151,1713547581887,3078.46,0.00010889,2]
[322958152,1713547594005,336.0,0.000112,2]
[322958153,1713547605101,1388.59049396,0.00011199,2]
[322958154,1713547613732,499.54,0.00010868,2]
[322958155,1713547615091,210.50432826,0.00011199,2]
[322958156,1713547618544,-150.0,0.000112,2]
[322958157,1713547618779,-252.63996803,0.000112,2]
[322958158,1713547622132,155.0,0.00011199,2]
[322958159,1713547636475,323.59682005,0.000112,2]
[322958160,1713547650269,220.06,0.00010887,2]
[322958161,1713547680773,1350.93200741,0.00011199,2]
[322958162,1713547716642,151.75613186,0.00015268,15]
[322958163,1713547756431,262.16181551,0.00011199,2]
[322958164,1713547758169,612.1509,0.00011101,2]
[322958165,1713547788422,600.0,0.00010903,2]
[322958166,1713547796842,150.0,0.00010959,2]
[322958167,1713547804672,1388.59049396,0.00011199,2]